[Event "Late-Titled-Tuesday-Blitz-January-23-2024"]
[Site "Chess.com"]
[Date "2024.01.23"]
[Round "4"]
[White "MyDream003"]
[Black "PabloZarnicki"]
[Result "1-0"]
[WhiteElo "2848"]
[BlackElo "2579"]
[TimeControl "180+1"]
[EndTime "14:38:01 PST"]
[Termination "MyDream003 won on time"]

1. e4 {[%clk 0:03:00.1]} 1... e5 {[%clk 0:03:00.2]} 2. Nf3 {[%clk 0:03:00]} 2...
Nf6 {[%clk 0:03:00.8]} 3. Nxe5 {[%clk 0:02:59.6]} 3... d6 {[%clk 0:03:01.2]} 4.
Nf3 {[%clk 0:02:59.7]} 4... Nxe4 {[%clk 0:03:01.8]} 5. d4 {[%clk 0:02:56.6]}
5... d5 {[%clk 0:03:01.3]} 6. Bd3 {[%clk 0:02:56.6]} 6... Nc6 {[%clk 0:03:01.7]}
7. c3 {[%clk 0:02:49.1]} 7... Be7 {[%clk 0:02:58.3]} 8. h3 {[%clk 0:02:48]} 8...
O-O {[%clk 0:02:58.2]} 9. O-O {[%clk 0:02:48]} 9... Bf5 {[%clk 0:02:57.7]} 10.
Re1 {[%clk 0:02:47.6]} 10... Bg6 {[%clk 0:02:53.8]} 11. Bf4 {[%clk 0:02:45.9]}
11... Bd6 {[%clk 0:02:52.5]} 12. Bxd6 {[%clk 0:02:46]} 12... Qxd6 {[%clk
0:02:52.3]} 13. Qc2 {[%clk 0:02:42.3]} 13... Rfe8 {[%clk 0:02:51.5]} 14. Nbd2
{[%clk 0:02:42.2]} 14... Nxd2 {[%clk 0:02:50.3]} 15. Qxd2 {[%clk 0:02:41.6]}
15... Kf8 {[%clk 0:02:32.4]} 16. Nh2 {[%clk 0:02:34.5]} 16... Rxe1+ {[%clk
0:02:28.4]} 17. Rxe1 {[%clk 0:02:34.2]} 17... Re8 {[%clk 0:02:28.1]} 18. Rxe8+
{[%clk 0:02:30.3]} 18... Kxe8 {[%clk 0:02:29]} 19. Bb5 {[%clk 0:02:30.8]} 19...
Kf8 {[%clk 0:02:12.7]} 20. Bxc6 {[%clk 0:02:27.1]} 20... Qxc6 {[%clk 0:02:13.6]}
21. Ng4 {[%clk 0:02:25.6]} 21... f6 {[%clk 0:02:11.1]} 22. Qf4 {[%clk
0:02:22.6]} 22... Qd7 {[%clk 0:02:01.1]} 23. Ne3 {[%clk 0:02:17.7]} 23... a6
{[%clk 0:01:52.7]} 24. g4 {[%clk 0:02:03.7]} 24... Bf7 {[%clk 0:01:47.3]} 25.
Kg2 {[%clk 0:02:01]} 25... Be6 {[%clk 0:01:43.6]} 26. h4 {[%clk 0:01:59.4]}
26... h6 {[%clk 0:01:36.4]} 27. g5 {[%clk 0:01:51]} 27... hxg5 {[%clk
0:01:36.2]} 28. hxg5 {[%clk 0:01:51.9]} 28... Ke7 {[%clk 0:01:32.4]} 29. Qh4
{[%clk 0:01:41.7]} 29... fxg5 {[%clk 0:01:12.2]} 30. Qxg5+ {[%clk 0:01:42.6]}
30... Kf7 {[%clk 0:01:12.5]} 31. f4 {[%clk 0:01:18.1]} 31... Qe7 {[%clk
0:01:04.3]} 32. Qe5 {[%clk 0:01:05.5]} 32... c6 {[%clk 0:00:54.5]} 33. Kg3
{[%clk 0:00:59.5]} 33... Qf6 {[%clk 0:00:44.9]} 34. Qc7+ {[%clk 0:00:50]} 34...
Qe7 {[%clk 0:00:43.9]} 35. Qxe7+ {[%clk 0:00:50.2]} 35... Kxe7 {[%clk
0:00:43.8]} 36. f5 {[%clk 0:00:51.1]} 36... Bf7 {[%clk 0:00:32.7]} 37. Kf4
{[%clk 0:00:51.4]} 37... g6 {[%clk 0:00:33.1]} 38. Ke5 {[%clk 0:00:39.9]} 38...
b6 {[%clk 0:00:14.9]} 39. f6+ {[%clk 0:00:33]} 39... Kd7 {[%clk 0:00:14.7]} 40.
Ng4 {[%clk 0:00:29.9]} 40... g5 {[%clk 0:00:05]} 41. Kf5 {[%clk 0:00:30.8]}
41... Be6+ {[%clk 0:00:03.7]} 42. Kxg5 {[%clk 0:00:31.1]} 1-0

[Event "Late-Titled-Tuesday-Blitz-January-23-2024"]
[Site "Chess.com"]
[Date "2024.01.23"]
[Round "4"]
[White "ChessBrainiacOnTwitch"]
[Black "Noki102"]
[Result "0-1"]
[WhiteElo "2774"]
[BlackElo "2452"]
[TimeControl "180+1"]
[EndTime "14:38:03 PST"]
[Termination "Noki102 won by checkmate"]

1. Nf3 {[%clk 0:03:00.9]} 1... d5 {[%clk 0:02:58.9]} 2. g3 {[%clk 0:02:58]} 2...
Bg4 {[%clk 0:02:58.5]} 3. Bg2 {[%clk 0:02:52]} 3... e6 {[%clk 0:02:58.6]} 4. d3
{[%clk 0:02:52.4]} 4... Nd7 {[%clk 0:02:58.5]} 5. Nbd2 {[%clk 0:02:53.1]} 5...
Bd6 {[%clk 0:02:57.4]} 6. O-O {[%clk 0:02:53.8]} 6... Ne7 {[%clk 0:02:56.8]} 7.
e4 {[%clk 0:02:54.5]} 7... c6 {[%clk 0:02:56]} 8. Re1 {[%clk 0:02:55.2]} 8...
O-O {[%clk 0:02:54.4]} 9. c3 {[%clk 0:02:55.9]} 9... h6 {[%clk 0:02:44.7]} 10.
d4 {[%clk 0:02:55.2]} 10... Rc8 {[%clk 0:02:41.4]} 11. h3 {[%clk 0:02:55.4]}
11... Bh5 {[%clk 0:02:40.6]} 12. Qe2 {[%clk 0:02:49.7]} 12... c5 {[%clk
0:02:35.3]} 13. e5 {[%clk 0:02:48.3]} 13... Bb8 {[%clk 0:02:34.2]} 14. g4 {[%clk
0:02:46.1]} 14... Bg6 {[%clk 0:02:33.6]} 15. Nh4 {[%clk 0:02:46.9]} 15... Bh7
{[%clk 0:02:33.5]} 16. f4 {[%clk 0:02:45.3]} 16... Nc6 {[%clk 0:02:24.4]} 17.
Nhf3 {[%clk 0:02:43.5]} 17... cxd4 {[%clk 0:02:12.6]} 18. cxd4 {[%clk
0:02:44.4]} 18... Qb6 {[%clk 0:02:11.4]} 19. Nb3 {[%clk 0:02:30.8]} 19... Nb4
{[%clk 0:02:06.2]} 20. f5 {[%clk 0:02:02.2]} 20... Nc2 {[%clk 0:01:58.6]} 21. f6
{[%clk 0:01:45]} 21... Nxe1 {[%clk 0:01:44.1]} 22. Qxe1 {[%clk 0:01:38.3]} 22...
gxf6 {[%clk 0:01:37.7]} 23. Bxh6 {[%clk 0:01:35.8]} 23... Rfe8 {[%clk
0:01:17.4]} 24. exf6 {[%clk 0:01:33.5]} 24... Nxf6 {[%clk 0:01:06]} 25. Ng5
{[%clk 0:01:33.1]} 25... Qd6 {[%clk 0:00:56.7]} 26. Nf3 {[%clk 0:00:57.2]} 26...
Qg3 {[%clk 0:00:43.6]} 27. Qe3 {[%clk 0:00:53.7]} 27... Rc2 {[%clk 0:00:31.7]}
28. Nbd2 {[%clk 0:00:50.9]} 28... Ne4 {[%clk 0:00:24.7]} 29. Rf1 {[%clk
0:00:30.6]} 29... Rec8 {[%clk 0:00:23.1]} 30. Rd1 {[%clk 0:00:07.7]} 30... Rxd2
{[%clk 0:00:20.2]} 31. Nxd2 {[%clk 0:00:05.3]} 31... Qh2+ {[%clk 0:00:16.7]} 32.
Kf1 {[%clk 0:00:05.5]} 32... Ng3+ {[%clk 0:00:07.9]} 33. Kf2 {[%clk 0:00:05.7]}
33... Ne4+ {[%clk 0:00:07.7]} 34. Nxe4 {[%clk 0:00:05.8]} 34... Bxe4 {[%clk
0:00:07.1]} 35. Rg1 {[%clk 0:00:02.1]} 35... Rc2+ {[%clk 0:00:06.3]} 36. Ke1
{[%clk 0:00:02]} 36... Qg3+ {[%clk 0:00:06]} 37. Qxg3 {[%clk 0:00:02.1]} 37...
Bxg3+ {[%clk 0:00:06.5]} 38. Kf1 {[%clk 0:00:02.8]} 38... Bd3# {[%clk
0:00:06.6]} 0-1

[Event "Late-Titled-Tuesday-Blitz-January-23-2024"]
[Site "Chess.com"]
[Date "2024.01.23"]
[Round "4"]
[White "Harsha_Bharathakoti"]
[Black "Polish_fighter3000"]
[Result "0-1"]
[WhiteElo "2908"]
[BlackElo "3095"]
[TimeControl "180+1"]
[EndTime "14:38:04 PST"]
[Termination "Polish_fighter3000 won by resignation"]

1. Nf3 {[%clk 0:03:00.2]} 1... Nf6 {[%clk 0:02:59.6]} 2. c4 {[%clk 0:03:00.4]}
2... c6 {[%clk 0:02:58.4]} 3. Nc3 {[%clk 0:02:57.1]} 3... d5 {[%clk 0:02:59]} 4.
e3 {[%clk 0:02:57.3]} 4... e6 {[%clk 0:02:50.6]} 5. b3 {[%clk 0:02:56.7]} 5...
Bd6 {[%clk 0:02:48.8]} 6. Bb2 {[%clk 0:02:56.4]} 6... O-O {[%clk 0:02:47.6]} 7.
Be2 {[%clk 0:02:56.6]} 7... e5 {[%clk 0:02:43.2]} 8. cxd5 {[%clk 0:02:47.3]}
8... e4 {[%clk 0:02:41]} 9. Nd4 {[%clk 0:02:43.5]} 9... cxd5 {[%clk 0:02:41.6]}
10. d3 {[%clk 0:02:22.8]} 10... a6 {[%clk 0:02:34.8]} 11. dxe4 {[%clk
0:02:20.2]} 11... dxe4 {[%clk 0:02:35.7]} 12. O-O {[%clk 0:02:15.4]} 12... Qe7
{[%clk 0:02:35.7]} 13. Qc2 {[%clk 0:02:05.1]} 13... h5 {[%clk 0:02:20.2]} 14.
Rfd1 {[%clk 0:01:47.2]} 14... b5 {[%clk 0:02:05.5]} 15. Qd2 {[%clk 0:00:48.1]}
15... Rd8 {[%clk 0:01:58.8]} 16. Qe1 {[%clk 0:00:47.5]} 16... Qe5 {[%clk
0:01:37.1]} 17. g3 {[%clk 0:00:46.9]} 17... h4 {[%clk 0:01:35.5]} 18. Rd2 {[%clk
0:00:22.4]} 18... Qe8 {[%clk 0:00:36.2]} 19. Rad1 {[%clk 0:00:21.4]} 19... Bf8
{[%clk 0:00:33.8]} 20. Bf1 {[%clk 0:00:14.1]} 20... Bg4 {[%clk 0:00:22.9]} 21.
Be2 {[%clk 0:00:09.8]} 21... Ra7 {[%clk 0:00:22.5]} 22. Bxg4 {[%clk 0:00:07.1]}
22... Nxg4 {[%clk 0:00:23.4]} 23. Qe2 {[%clk 0:00:07.4]} 23... Nf6 {[%clk
0:00:22.8]} 24. Nc2 {[%clk 0:00:05.9]} 24... Rad7 {[%clk 0:00:19.2]} 25. Rxd7
{[%clk 0:00:05.7]} 25... Nbxd7 {[%clk 0:00:20.1]} 26. Nd5 {[%clk 0:00:04.4]}
26... Nxd5 {[%clk 0:00:16.4]} 27. Rxd5 {[%clk 0:00:05.3]} 27... Rc8 {[%clk
0:00:09.6]} 28. Qd1 {[%clk 0:00:04.2]} 28... Nc5 {[%clk 0:00:08.2]} 29. Ne1
{[%clk 0:00:02.8]} 29... Qe6 {[%clk 0:00:06.8]} 30. Kg2 {[%clk 0:00:02.2]} 30...
h3+ {[%clk 0:00:06.8]} 31. Kg1 {[%clk 0:00:02.4]} 31... Nd3 {[%clk 0:00:07.2]}
32. Rxd3 {[%clk 0:00:01.5]} 32... exd3 {[%clk 0:00:07.2]} 33. Qxd3 {[%clk
0:00:02.4]} 33... Qc6 {[%clk 0:00:05.3]} 34. f3 {[%clk 0:00:02.3]} 34... Bb4
{[%clk 0:00:05.3]} 35. Kf2 {[%clk 0:00:01.6]} 35... Bxe1+ {[%clk 0:00:05.4]} 36.
Kxe1 {[%clk 0:00:02.5]} 36... Qxf3 {[%clk 0:00:05.8]} 0-1

[Event "Late-Titled-Tuesday-Blitz-January-23-2024"]
[Site "Chess.com"]
[Date "2024.01.23"]
[Round "4"]
[White "Actuary44"]
[Black "carloseduar100"]
[Result "1/2-1/2"]
[WhiteElo "2479"]
[BlackElo "2309"]
[TimeControl "180+1"]
[EndTime "14:38:07 PST"]
[Termination "Game drawn by repetition"]

1. e4 {[%clk 0:03:00.9]} 1... e6 {[%clk 0:02:59.9]} 2. d4 {[%clk 0:03:01]} 2...
d5 {[%clk 0:02:59.6]} 3. e5 {[%clk 0:03:01.7]} 3... c5 {[%clk 0:02:59.3]} 4.
dxc5 {[%clk 0:03:02.6]} 4... Nc6 {[%clk 0:02:58.3]} 5. f4 {[%clk 0:03:03.1]}
5... Bxc5 {[%clk 0:02:57.9]} 6. Nf3 {[%clk 0:03:03.6]} 6... Nge7 {[%clk
0:02:58.1]} 7. Bd3 {[%clk 0:03:04.2]} 7... a6 {[%clk 0:02:53.5]} 8. Nc3 {[%clk
0:03:04.8]} 8... b5 {[%clk 0:02:52]} 9. Qe2 {[%clk 0:03:01.7]} 9... Qb6 {[%clk
0:02:46.7]} 10. Bd2 {[%clk 0:03:01]} 10... Bd7 {[%clk 0:02:42.5]} 11. O-O-O
{[%clk 0:02:59.9]} 11... Nd4 {[%clk 0:02:41.8]} 12. Nxd4 {[%clk 0:02:59.1]}
12... Bxd4 {[%clk 0:02:42.7]} 13. f5 {[%clk 0:02:55.2]} 13... b4 {[%clk
0:02:42.6]} 14. fxe6 {[%clk 0:02:53.7]} 14... fxe6 {[%clk 0:02:39.7]} 15. Nb1
{[%clk 0:02:48.6]} 15... a5 {[%clk 0:02:19]} 16. Qg4 {[%clk 0:02:38]} 16... a4
{[%clk 0:02:14.6]} 17. Qxg7 {[%clk 0:02:32.8]} 17... Rg8 {[%clk 0:02:14.4]} 18.
Qxh7 {[%clk 0:02:30.2]} 18... b3 {[%clk 0:02:14.8]} 19. cxb3 {[%clk 0:02:27.4]}
19... axb3 {[%clk 0:02:11.9]} 20. a3 {[%clk 0:02:18.4]} 20... Rxg2 {[%clk
0:01:41.3]} 21. Nc3 {[%clk 0:01:58]} 21... Qc5 {[%clk 0:01:24.5]} 22. Kb1 {[%clk
0:01:44.3]} 22... Rxa3 {[%clk 0:00:54]} 23. bxa3 {[%clk 0:01:26.9]} 23... Qxa3
{[%clk 0:00:53.1]} 24. Qh8+ {[%clk 0:00:38.3]} 24... Rg8 {[%clk 0:00:50.1]} 25.
Qh5+ {[%clk 0:00:33.7]} 25... Kd8 {[%clk 0:00:46.9]} 26. Bc1 {[%clk 0:00:33.5]}
26... Qa5 {[%clk 0:00:25]} 27. Bb2 {[%clk 0:00:31.8]} 27... Bxc3 {[%clk
0:00:20.3]} 28. Bxc3 {[%clk 0:00:32.7]} 28... Qxc3 {[%clk 0:00:20.3]} 29. Qe2
{[%clk 0:00:32.6]} 29... Nc6 {[%clk 0:00:14.4]} 30. Qb2 {[%clk 0:00:31.7]} 30...
Qb4 {[%clk 0:00:13.4]} 31. Rhg1 {[%clk 0:00:29.1]} 31... Rxg1 {[%clk 0:00:12.4]}
32. Rxg1 {[%clk 0:00:30]} 32... Kc7 {[%clk 0:00:12.7]} 33. Rc1 {[%clk
0:00:29.5]} 33... Qf4 {[%clk 0:00:12.1]} 34. Qxb3 {[%clk 0:00:27.4]} 34... Qxe5
{[%clk 0:00:12.6]} 35. Bb5 {[%clk 0:00:26.6]} 35... Qxh2 {[%clk 0:00:12.3]} 36.
Bxc6 {[%clk 0:00:24.7]} 36... Bxc6 {[%clk 0:00:13.2]} 37. Qa4 {[%clk 0:00:22.8]}
37... Qd6 {[%clk 0:00:13.4]} 38. Qa7+ {[%clk 0:00:21.8]} 38... Kd8 {[%clk
0:00:13.6]} 39. Qb6+ {[%clk 0:00:21.7]} 39... Kd7 {[%clk 0:00:13.8]} 40. Qa7+
{[%clk 0:00:21.7]} 40... Qc7 {[%clk 0:00:14.3]} 41. Qxc7+ {[%clk 0:00:20.4]}
41... Kxc7 {[%clk 0:00:14.5]} 42. Kc2 {[%clk 0:00:21]} 42... Kd6 {[%clk
0:00:15]} 43. Kc3 {[%clk 0:00:21.5]} 43... e5 {[%clk 0:00:15.7]} 44. Rg1 {[%clk
0:00:20.7]} 44... d4+ {[%clk 0:00:16]} 45. Kd3 {[%clk 0:00:20.9]} 45... Kd5
{[%clk 0:00:16.6]} 46. Rg5 {[%clk 0:00:20.7]} 46... Bb5+ {[%clk 0:00:17]} 47.
Kd2 {[%clk 0:00:20.4]} 47... Bd7 {[%clk 0:00:17.1]} 48. Kd3 {[%clk 0:00:20]}
48... Bb5+ {[%clk 0:00:16.7]} 49. Kd2 {[%clk 0:00:20.3]} 49... Bd7 {[%clk
0:00:16.8]} 50. Kd3 {[%clk 0:00:20.8]} 50... Bb5+ {[%clk 0:00:17.2]} 1/2-1/2

[Event "Late-Titled-Tuesday-Blitz-January-23-2024"]
[Site "Chess.com"]
[Date "2024.01.23"]
[Round "4"]
[White "xakevicius91"]
[Black "jamengrand"]
[Result "1-0"]
[WhiteElo "2552"]
[BlackElo "2263"]
[TimeControl "180+1"]
[EndTime "14:38:08 PST"]
[Termination "xakevicius91 won on time"]

1. e4 {[%clk 0:03:00.9]} 1... e5 {[%clk 0:03:00.1]} 2. Nf3 {[%clk 0:03:00.3]}
2... Nc6 {[%clk 0:03:00.5]} 3. d4 {[%clk 0:02:58.7]} 3... exd4 {[%clk
0:02:59.8]} 4. Nxd4 {[%clk 0:02:59.6]} 4... Nf6 {[%clk 0:02:59.9]} 5. Nxc6
{[%clk 0:02:58.7]} 5... bxc6 {[%clk 0:03:00.4]} 6. Qe2 {[%clk 0:02:59.2]} 6...
Qe7 {[%clk 0:02:53.5]} 7. Nc3 {[%clk 0:02:59.2]} 7... g6 {[%clk 0:02:39.9]} 8.
Bg5 {[%clk 0:02:53.6]} 8... h6 {[%clk 0:02:39.7]} 9. Bf4 {[%clk 0:02:46.3]} 9...
d6 {[%clk 0:02:36.6]} 10. O-O-O {[%clk 0:02:42.5]} 10... Bg7 {[%clk 0:02:33.9]}
11. Qd2 {[%clk 0:02:38.4]} 11... g5 {[%clk 0:02:22.8]} 12. Bg3 {[%clk
0:02:38.2]} 12... Rb8 {[%clk 0:02:21.7]} 13. Bc4 {[%clk 0:02:37.8]} 13... Be6
{[%clk 0:02:18.3]} 14. Bb3 {[%clk 0:02:37.2]} 14... a5 {[%clk 0:02:16.4]} 15.
Rhe1 {[%clk 0:02:34.9]} 15... Nh5 {[%clk 0:02:09.7]} 16. Nd5 {[%clk 0:02:26.3]}
16... cxd5 {[%clk 0:02:01.8]} 17. exd5 {[%clk 0:02:26.2]} 17... a4 {[%clk
0:02:01.1]} 18. Bxa4+ {[%clk 0:02:25.4]} 18... Kf8 {[%clk 0:01:59.1]} 19. Bb3
{[%clk 0:02:25.4]} 19... Nxg3 {[%clk 0:01:54.9]} 20. dxe6 {[%clk 0:02:12.3]}
20... Nf5 {[%clk 0:01:47]} 21. exf7 {[%clk 0:02:11]} 21... Qf6 {[%clk
0:01:46.2]} 22. c3 {[%clk 0:02:06.6]} 22... Rxb3 {[%clk 0:01:42.2]} 23. axb3
{[%clk 0:02:04.8]} 23... Qxf7 {[%clk 0:01:25.2]} 24. Qd5 {[%clk 0:01:55.9]}
24... Qxd5 {[%clk 0:01:07]} 25. Rxd5 {[%clk 0:01:56.8]} 25... Ne7 {[%clk
0:01:06.6]} 26. Ra5 {[%clk 0:01:55]} 26... Kf7 {[%clk 0:00:57.5]} 27. Ra7 {[%clk
0:01:54.2]} 27... Rc8 {[%clk 0:00:57.7]} 28. g3 {[%clk 0:01:49.2]} 28... Nc6
{[%clk 0:00:57.4]} 29. Rb7 {[%clk 0:01:46.3]} 29... Ne5 {[%clk 0:00:57.2]} 30.
Kc2 {[%clk 0:01:46.6]} 30... Nf3 {[%clk 0:00:56.9]} 31. Rh1 {[%clk 0:01:43]}
31... Ke6 {[%clk 0:00:50]} 32. Kd3 {[%clk 0:01:41.1]} 32... Kd7 {[%clk
0:00:48.4]} 33. Ke2 {[%clk 0:01:38.4]} 33... g4 {[%clk 0:00:47.2]} 34. h3 {[%clk
0:01:37.5]} 34... Re8+ {[%clk 0:00:45.9]} 35. Kd3 {[%clk 0:01:37.2]} 35... Kc6
{[%clk 0:00:30.8]} 36. Rb4 {[%clk 0:01:33.4]} 36... Ne1+ {[%clk 0:00:24.9]} 37.
Kd2 {[%clk 0:01:29.3]} 37... Nf3+ {[%clk 0:00:24.7]} 38. Kd1 {[%clk 0:01:29.6]}
38... gxh3 {[%clk 0:00:22]} 39. Rf4 {[%clk 0:01:25.5]} 39... Ng5 {[%clk
0:00:18.8]} 40. Rg4 {[%clk 0:01:21.3]} 40... Ra8 {[%clk 0:00:18.3]} 41. Kc2
{[%clk 0:01:16.9]} 41... Re8 {[%clk 0:00:18.4]} 42. f4 {[%clk 0:01:16.6]} 42...
Nf3 {[%clk 0:00:15.5]} 43. Rxh3 {[%clk 0:01:04.8]} 43... Re2+ {[%clk 0:00:14.3]}
44. Kd1 {[%clk 0:01:02.8]} 44... Re1+ {[%clk 0:00:14.5]} 45. Kc2 {[%clk
0:01:02.7]} 45... Bf6 {[%clk 0:00:12.2]} 46. Rxh6 {[%clk 0:01:02.2]} 46... Bd8
{[%clk 0:00:10.8]} 47. Rh8 {[%clk 0:00:55.3]} 47... Be7 {[%clk 0:00:10.9]} 48.
Re8 {[%clk 0:00:54.7]} 48... Re2+ {[%clk 0:00:09.7]} 49. Kd3 {[%clk 0:00:53.5]}
49... Re1 {[%clk 0:00:09.1]} 50. Rg7 {[%clk 0:00:52.1]} 50... Bf6 {[%clk
0:00:04.4]} 51. Rgg8 {[%clk 0:00:47]} 51... Rb1 {[%clk 0:00:04.4]} 52. g4 {[%clk
0:00:41.8]} 52... Rxb2 {[%clk 0:00:03.7]} 53. g5 {[%clk 0:00:42]} 53... Bxg5
{[%clk 0:00:01.6]} 54. fxg5 {[%clk 0:00:42.1]} 1-0

[Event "Late-Titled-Tuesday-Blitz-January-23-2024"]
[Site "Chess.com"]
[Date "2024.01.23"]
[Round "4"]
[White "Brown_Mamba24"]
[Black "Sanan_Sjugirov"]
[Result "0-1"]
[WhiteElo "2638"]
[BlackElo "3021"]
[TimeControl "180+1"]
[EndTime "14:38:11 PST"]
[Termination "Sanan_Sjugirov won by resignation"]

1. d4 {[%clk 0:03:00.9]} 1... Nf6 {[%clk 0:03:00.1]} 2. c4 {[%clk 0:03:00.6]}
2... g6 {[%clk 0:03:00.3]} 3. Nc3 {[%clk 0:03:00.8]} 3... Bg7 {[%clk 0:03:01]}
4. e4 {[%clk 0:03:00.9]} 4... d6 {[%clk 0:03:01.6]} 5. Be2 {[%clk 0:03:01.3]}
5... O-O {[%clk 0:03:00.7]} 6. Be3 {[%clk 0:03:01.4]} 6... Nc6 {[%clk
0:03:00.6]} 7. d5 {[%clk 0:02:51.9]} 7... Ne5 {[%clk 0:03:00.3]} 8. h3 {[%clk
0:02:52.5]} 8... c6 {[%clk 0:02:56.2]} 9. f4 {[%clk 0:02:43.3]} 9... Ned7 {[%clk
0:02:55.8]} 10. Bf3 {[%clk 0:02:21.3]} 10... cxd5 {[%clk 0:02:30.2]} 11. cxd5
{[%clk 0:02:22.2]} 11... b5 {[%clk 0:02:24.5]} 12. Nge2 {[%clk 0:01:47.2]} 12...
b4 {[%clk 0:02:19.6]} 13. Na4 {[%clk 0:01:47.2]} 13... Ba6 {[%clk 0:02:11.3]}
14. O-O {[%clk 0:01:43.4]} 14... Qa5 {[%clk 0:01:57.4]} 15. Rf2 {[%clk
0:01:39.3]} 15... Bb5 {[%clk 0:01:31.6]} 16. b3 {[%clk 0:01:37.7]} 16... Bxa4
{[%clk 0:01:32.1]} 17. bxa4 {[%clk 0:01:38.6]} 17... Nc5 {[%clk 0:01:32.5]} 18.
Nd4 {[%clk 0:01:28]} 18... Nfxe4 {[%clk 0:01:29.8]} 19. Rc2 {[%clk 0:00:55.2]}
19... Nc3 {[%clk 0:01:25.1]} 20. Qe1 {[%clk 0:00:43.2]} 20... Qxa4 {[%clk
0:01:22.4]} 21. Qd2 {[%clk 0:00:25.4]} 21... Rac8 {[%clk 0:01:13.8]} 22. Re1
{[%clk 0:00:22.8]} 22... Rfe8 {[%clk 0:01:10.1]} 23. Bf2 {[%clk 0:00:22.1]}
23... Qd7 {[%clk 0:00:54.2]} 24. Bg4 {[%clk 0:00:18.8]} 24... f5 {[%clk
0:00:54.4]} 25. Bf3 {[%clk 0:00:18.9]} 25... N5e4 {[%clk 0:00:55]} 26. Qd3
{[%clk 0:00:15.8]} 26... Nc5 {[%clk 0:00:46.2]} 27. Qd2 {[%clk 0:00:14.8]} 27...
N3e4 {[%clk 0:00:45.7]} 28. Qd1 {[%clk 0:00:11.5]} 28... a5 {[%clk 0:00:39.1]}
29. Nc6 {[%clk 0:00:10.8]} 29... Bc3 {[%clk 0:00:27.4]} 30. Ree2 {[%clk
0:00:08.6]} 30... a4 {[%clk 0:00:27.4]} 31. Bd4 {[%clk 0:00:07.8]} 31... Bxd4+
{[%clk 0:00:24.9]} 32. Qxd4 {[%clk 0:00:08.6]} 32... b3 {[%clk 0:00:24.6]} 33.
axb3 {[%clk 0:00:08.6]} 33... axb3 {[%clk 0:00:25.5]} 34. Rb2 {[%clk 0:00:08.1]}
34... e6 {[%clk 0:00:25.3]} 35. Nb4 {[%clk 0:00:07.2]} 35... e5 {[%clk
0:00:24.5]} 36. fxe5 {[%clk 0:00:06.6]} 36... dxe5 {[%clk 0:00:22]} 37. Qc4
{[%clk 0:00:05.7]} 37... Nd6 {[%clk 0:00:21]} 38. Qh4 {[%clk 0:00:02.7]} 38...
e4 {[%clk 0:00:20.4]} 39. Bg4 {[%clk 0:00:01.9]} 39... Nd3 {[%clk 0:00:18.7]}
40. Nxd3 {[%clk 0:00:01.8]} 40... exd3 {[%clk 0:00:19.6]} 41. Rxe8+ {[%clk
0:00:02]} 41... Rxe8 {[%clk 0:00:19.7]} 42. Bd1 {[%clk 0:00:02.8]} 42... Qa7+
{[%clk 0:00:18.1]} 43. Qf2 {[%clk 0:00:03.2]} 43... Re1+ {[%clk 0:00:17]} 44.
Kh2 {[%clk 0:00:03.8]} 44... Qxf2 {[%clk 0:00:17.4]} 0-1